fUSD/lending_fUSD_20260428
["ID","MTS","AMOUNT","RATE_DAILY","PERIOD"]
[421293770,1777375838600,-381.89,0.0001182,2]
[421293771,1777375838656,-1526.86,0.0001182,2]
[421293772,1777375838712,-2749.91851468,0.0001182,2]
[421293801,1777375840327,-6598.11640796,0.0001182,2]
[421293802,1777375840382,-787.67,0.0001182,2]
[421293803,1777375840438,-946.05260061,0.0001182,2]
[421293804,1777375840656,-772376.15860078,0.0001182,2]
[421293805,1777375840666,-228.36456337,0.0001182,2]
[421293806,1777375840675,-161.0,0.0001182,3]
[421293807,1777375840685,-157.0,0.0001182,3]
[421293808,1777375840694,-500.0,0.00011873,2]
[421293809,1777375840703,-500.0,0.00011873,2]
[421293810,1777375840713,-500.0,0.00011873,2]
[421293811,1777375840722,-1013.0,0.00011899,5]
[421293812,1777375840732,-1466.55251042,0.000119,2]
[421293813,1777375840741,-963.37881604,0.000119,2]
[421293814,1777375840751,-46641.66244387,0.00011906,2]
[421293815,1777375840761,-228.36456337,0.00011906,2]
[421293816,1777375840771,-1392.49058,0.00011906,2]
[421293817,1777375840780,-500.0,0.00011973,2]
[421293818,1777375840790,-3092.64,0.00011991,2]
[421293819,1777375840801,-500.0,0.00011999,2]
[421293820,1777375840810,-500.0,0.00011999,2]
[421293821,1777375840823,-500.0,0.00011999,2]
[421293822,1777375840832,-500.0,0.00011999,2]
[421293823,1777375840842,-500.0,0.00011999,2]
[421293824,1777375840851,-500.0,0.00011999,2]
[421293825,1777375840860,-500.0,0.00011999,2]
[421293826,1777375840870,-500.0,0.00011999,2]
[421293827,1777375840879,-500.0,0.00011999,2]
[421293828,1777375840888,-500.0,0.00011999,2]
[421293829,1777375840898,-500.0,0.00011999,2]
[421293830,1777375840907,-500.0,0.00011999,2]
[421293831,1777375840917,-500.0,0.00011999,2]
[421293832,1777375840927,-500.0,0.00011999,2]
[421293833,1777375840936,-500.0,0.00011999,2]
[421293834,1777375840947,-500.0,0.00011999,2]
[421293835,1777375840957,-500.0,0.00011999,2]
[421293836,1777375840966,-500.0,0.00011999,2]
[421293837,1777375840976,-500.0,0.00011999,2]
[421293838,1777375840986,-500.0,0.00011999,2]
[421293839,1777375840996,-500.0,0.00011999,2]
[421293840,1777375841005,-500.0,0.00011999,2]
[421293841,1777375841015,-500.0,0.00011999,2]
[421293842,1777375841024,-500.0,0.00011999,2]
[421293843,1777375841033,-500.0,0.00011999,2]
[421293844,1777375841045,-500.0,0.00011999,2]
[421293845,1777375841055,-500.0,0.00011999,2]
[421293846,1777375841065,-500.0,0.00011999,2]
[421293847,1777375841074,-500.0,0.00011999,2]
[421293848,1777375841084,-500.0,0.00011999,2]
[421293849,1777375841094,-500.0,0.00011999,2]
[421293850,1777375841104,-500.0,0.00011999,2]
[421293851,1777375841113,-500.0,0.00011999,2]
[421293852,1777375841124,-500.0,0.00011999,2]
[421293853,1777375841134,-500.0,0.00011999,2]
[421293854,1777375841143,-4173265.86249563,0.00012,2]
[421293855,1777375841165,-259.39905185,0.0001176,2]
[421293901,1777375843267,-129.45506635,0.0001176,2]
[421293903,1777375843276,-432.94487365,0.00012,2]
[421293905,1777375843289,-345.0,0.00012,2]
[421293914,1777375843536,-640.58558401,0.00012,2]
[421293915,1777375844709,-666.66,0.00012,2]
[421293916,1777375844721,-673.3310658,0.00012,2]
[421293917,1777375844732,-347.87909435,0.00012,2]
[421293923,1777375846693,-506.73051809,0.0001182,2]
[421293924,1777375846703,-5406.59467301,0.00012,2]
[421293925,1777375846714,-2666.32079483,0.00012,2]
[421293926,1777375846896,-3058.3096,0.00012,2]
[421293927,1777375846961,-14997.48861076,0.00012,2]
[421293932,1777376289578,-500.0,8.119e-05,2]
[421293933,1777376289608,-250.0,8.119e-05,2]
[421293934,1777376289638,-280.0,8.219e-05,2]
[421293935,1777376289667,-2940.01,8.285e-05,2]
[421293936,1777376295506,-258.0,8.285e-05,2]
[421293937,1777376295535,-2059.99,8.285e-05,2]
[421293938,1777376295564,-364.03,8.285e-05,2]
[421293939,1777376295626,-778.00587246,8.285e-05,2]
[421293940,1777376298493,-3857.96412754,8.285e-05,2]
[421293941,1777376298527,-2284.08174492,8.285e-05,2]
[421293942,1777376340983,500.0,8.019e-05,2]
[421293943,1777376506971,299.268,8.019e-05,2]
[421293962,1777377032199,-303.73733674,8.219e-05,2]
[421293963,1777377032208,-280.0,8.219e-05,2]
[421293964,1777377032218,-449.00096503,8.297e-05,2]
[421293965,1777377032228,-3116.422087,8.837e-05,2]
[421293966,1777377032238,-224.71379302,8.882e-05,2]
[421293967,1777377032247,-1200.0,8.926e-05,2]
[421293968,1777377032256,-300.0,8.926e-05,2]
[421293969,1777377032266,-300.0,8.926e-05,2]
[421293970,1777377032275,-1200.0,8.926e-05,2]
[421293971,1777377032285,-300.0,8.927e-05,2]
[421293972,1777377032298,-300.0,8.927e-05,2]
[421293973,1777377032308,-150.0,9.04e-05,2]
[421293974,1777377032318,-5000.0,9.041e-05,2]
[421293975,1777377032328,-335.02105911,9.041e-05,2]
[421293976,1777377032338,-250.0,9.041e-05,2]
[421293977,1777377032348,-250.0,9.041e-05,2]
[421293978,1777377032358,-858.0,9.198e-05,2]
[421293979,1777377032368,-174.0,9.198e-05,2]
[421293980,1777377032378,-173.0,9.22e-05,2]
[421293981,1777377032388,-446.0,9.25e-05,2]
[421293982,1777377032398,-186.74,9.276e-05,2]
[421293983,1777377032408,-579.0,9.332e-05,2]
[421293984,1777377032420,-233.42,9.563e-05,2]
[421293985,1777377032430,-200.0,9.7e-05,2]
[421293986,1777377032442,-1502.63,9.712e-05,2]
[421293987,1777377032452,-205.96982131,9.749e-05,2]
[421293988,1777377032463,-500.0,9.749e-05,2]
[421293989,1777377032473,-181.21207284,9.749e-05,2]
[421293990,1777377032482,-170.10106507,9.749e-05,2]
[421293991,1777377032492,-553.28,9.749e-05,2]
[421293992,1777377032502,-161.62952544,9.749e-05,2]
[421293993,1777377032511,-500.0,9.749e-05,2]
[421293994,1777377032522,-297.12263644,9.749e-05,2]
[421293995,1777377032531,-500.0,9.749e-05,2]
[421293996,1777377032544,-357.67361184,9.749e-05,2]
[421293997,1777377032554,-500.0,9.749e-05,2]
[421293998,1777377032564,-500.0,9.749e-05,2]
[421293999,1777377032574,-296.05761064,9.749e-05,2]
[421294000,1777377032583,-500.0,9.749e-05,2]
[421294001,1777377032594,-250.0,9.749e-05,2]
[421294002,1777377032603,-854606.70133074,9.75e-05,2]
[421294003,1777377032616,-636.65095903,9.75e-05,2]
[421294004,1777377032627,-262.02687277,9.75e-05,2]
[421294005,1777377032639,-3031.8631592,9.75e-05,2]
[421294006,1777377032654,-591.86802884,9.75e-05,2]
[421294007,1777377032665,-378.47607588,9.75e-05,2]
[421294008,1777377032690,-400.0,9.75e-05,2]
[421294009,1777377032705,-412.750005,9.75e-05,2]
[421294011,1777377032716,-487.38503545,9.75e-05,2]
[421294012,1777377032728,-717.79063966,9.75e-05,2]
[421294013,1777377032739,-856.08682692,9.75e-05,2]
[421294016,1777377038481,-377.12565,9.75e-05,2]
[421294017,1777377038493,-431.69598331,9.75e-05,2]
[421294018,1777377038505,-993.71667762,9.75e-05,2]
[421294019,1777377038533,-1033.56296967,9.75e-05,2]
[421294020,1777377038545,-17863.52882964,9.75e-05,2]
[421294021,1777377038557,-3815.0,9.75e-05,2]
[421294022,1777377038641,-14989.6315154,9.75e-05,2]
[421294023,1777377038653,-999.8506,9.75e-05,2]
[421294024,1777377038665,-1021.88178341,9.75e-05,2]
[421294025,1777377038698,-1738.835448,9.75e-05,2]
[421294026,1777377038710,-3242.36316023,9.75e-05,2]
[421294027,1777377038756,-111176.17104923,9.75e-05,2]
[421294028,1777377038765,-420.0,9.819e-05,2]
[421294029,1777377038775,-1680.0,9.819e-05,2]
[421294030,1777377038784,-420.0,9.82e-05,2]
[421294031,1777377038794,-560.23,9.85e-05,2]
[421294032,1777377038803,-224.71379301,9.909e-05,2]
[421294033,1777377038812,-3456.93540395,9.922e-05,2]
[421294034,1777377038821,-255.0,9.944e-05,2]
[421294035,1777377038830,-285.2750907,9.986e-05,2]
[421294036,1777377038839,-150.0,9.986e-05,2]
[421294037,1777377038849,-150.16229376,9.986e-05,2]
[421294038,1777377038859,-150.0,9.986e-05,2]
[421294039,1777377038868,-150.0,9.986e-05,2]
[421294040,1777377038877,-150.0,9.986e-05,2]
[421294041,1777377038886,-150.0,9.986e-05,2]
[421294042,1777377038895,-150.12769934,9.986e-05,2]
[421294043,1777377038905,-150.0,9.986e-05,2]
[421294045,1777377038913,-150.0,9.986e-05,2]
[421294047,1777377038922,-200.0,0.0001,2]
[421294049,1777377038932,-151.0,0.0001,2]
[421294051,1777377038941,-151.0,0.0001,2]
[421294053,1777377038950,-151.0,0.0001,2]
[421294055,1777377038959,-151.0,0.0001,2]
[421294057,1777377038968,-151.0,0.0001,2]
[421294059,1777377038978,-151.0,0.0001,2]
[421294061,1777377038990,-151.0,0.0001,2]
[421294063,1777377038999,-159.03148013,0.0001,2]
[421294065,1777377039009,-150.0,0.00010001,2]
[421294067,1777377039018,-150.0,0.00010016,2]
[421294069,1777377039027,-150.0,0.00010031,2]
[421294071,1777377039037,-150.0,0.00010045,2]
[421294072,1777377039046,-150.0,0.00010056,2]
[421294074,1777377039055,-150.0,0.0001006,2]
[421294075,1777377039064,-150.0,0.00010075,2]
[421294076,1777377039074,-150.0,0.00010079,2]
[421294077,1777377039083,-150.0,0.0001009,2]
[421294078,1777377039093,-5529.0,0.000101,3]
[421294079,1777377039102,-150.0,0.00010105,2]
[421294080,1777377039112,-197.48,0.00010118,2]
[421294081,1777377039121,-150.0,0.00010119,2]
[421294082,1777377039130,-150.0,0.00010125,2]
[421294083,1777377039139,-150.0,0.00010134,2]
[421294084,1777377039148,-150.0,0.00010134,2]
[421294085,1777377039157,-150.0,0.00010145,2]
[421294086,1777377039166,-150.0,0.00010149,2]
[421294087,1777377039176,-150.0,0.00010164,2]
[421294088,1777377039185,-150.0,0.00010171,2]
[421294089,1777377039194,-1600.995631,0.00010172,2]
[421294090,1777377039203,-150.0,0.00010179,2]
[421294091,1777377039212,-150.0,0.00010193,2]
[421294092,1777377039222,-150.0,0.00010194,2]
[421294093,1777377039231,-419.85042039,0.000102,2]
[421294094,1777377039240,-150.0,0.00010208,2]
[421294095,1777377039249,-150.0,0.00010215,2]
[421294096,1777377039259,-150.0,0.00010223,2]
[421294097,1777377039268,-150.0,0.00010238,2]
[421294098,1777377039278,-150.0,0.00010253,2]
[421294099,1777377039287,-150.0,0.00010264,2]
[421294100,1777377039297,-150.0,0.00010264,2]
[421294101,1777377039306,-150.0,0.00010264,2]
[421294102,1777377039315,-150.0,0.00010267,2]
[421294103,1777377039324,-150.0,0.00010282,2]
[421294104,1777377039334,-150.0,0.00010295,2]
[421294105,1777377039343,-150.0,0.00010297,2]
[421294106,1777377039352,-5529.0,0.000103,5]
[421294107,1777377039361,-150.0,0.00010303,2]
[421294108,1777377039371,-3524.740443,0.00010309,2]
[421294109,1777377039380,-150.0,0.00010312,2]
[421294110,1777377039390,-846.624641,0.00010326,2]
[421294111,1777377039399,-150.0,0.00010327,2]
[421294112,1777377039409,-12336.591549,0.0001033,2]
[421294113,1777377039418,-2733.616873,0.0001033,2]
[421294114,1777377039428,-150.0,0.00010333,2]
[421294115,1777377039447,-150.0,0.00010341,2]
[421294116,1777377039458,-150.0,0.00010356,2]
[421294117,1777377039469,-150.0,0.00010356,2]
[421294118,1777377039479,-150.0,0.00010356,2]
[421294119,1777377039488,-150.0,0.00010371,2]
[421294120,1777377039498,-150.0,0.00010376,2]
[421294121,1777377039507,-17036.245472,0.0001038,2]
[421294122,1777377039517,-10034.180146,0.0001038,2]
[421294123,1777377039527,-17120.055024,0.0001038,2]
[421294124,1777377039536,-1925.609317,0.0001038,2]
[421294125,1777377039546,-150.0,0.00010386,2]
[421294126,1777377039556,-150.0,0.00010401,2]
[421294127,1777377039565,-150.0,0.00010402,2]
[421294128,1777377039575,-200.49984726,0.00010405,2]
[421294129,1777377039585,-150.0,0.00010415,2]
[421294130,1777377039594,-150.0,0.0001043,2]
[421294131,1777377039603,-150.0,0.00010445,2]
[421294132,1777377039613,-150.0,0.00010449,2]
[421294133,1777377039622,-150.0,0.00010456,2]
[421294134,1777377039632,-150.0,0.0001046,2]
[421294135,1777377039642,-150.0,0.00010462,2]
[421294136,1777377039651,-150.0,0.00010472,2]
[421294137,1777377039660,-150.0,0.00010475,2]
[421294138,1777377039670,-150.0,0.00010489,2]
[421294139,1777377039680,-156.71855577,0.000105,2]
[421294140,1777377039689,-150.0,0.00010504,2]
[421294141,1777377039699,-150.0,0.00010519,2]
[421294142,1777377039708,-150.0,0.00010534,2]
[421294143,1777377039717,-150.0,0.00010536,2]
[421294144,1777377039726,-150.0,0.00010541,2]
[421294145,1777377039736,-150.0,0.00010541,2]
[421294146,1777377039745,-150.0,0.00010541,2]
[421294147,1777377039755,-200.0,0.00010548,2]
[421294148,1777377039764,-150.0,0.00010548,2]
[421294149,1777377039774,-150.0,0.00010563,2]
[421294150,1777377039784,-150.0,0.00010578,2]
[421294151,1777377039794,-5000.0,0.00010592,2]
[421294152,1777377039803,-150.0,0.00010593,2]
[421294153,1777377039813,-150.0,0.00010608,2]
[421294154,1777377039822,-150.0,0.0001061,2]
[421294155,1777377039832,-150.0,0.00010617,2]
[421294156,1777377039842,-150.0,0.0001062,2]
[421294157,1777377039851,-150.0,0.00010622,2]
[421294158,1777377039861,-150.0,0.00010634,2]
[421294159,1777377039870,-150.0,0.00010637,2]
[421294160,1777377039879,-150.0,0.00010652,2]
[421294161,1777377039889,-150.0,0.00010667,2]
[421294162,1777377039899,-501.07973384,0.00010673,2]
[421294163,1777377039908,-500.0,0.00010673,2]
[421294164,1777377039917,-500.0,0.00010673,2]
[421294165,1777377039927,-500.0,0.00010673,2]
[421294166,1777377039936,-500.0,0.00010673,2]
[421294167,1777377039945,-500.0,0.00010673,2]
[421294168,1777377039954,-500.0,0.00010673,2]
[421294169,1777377039963,-500.0,0.00010673,2]
[421294170,1777377039973,-381.92146827,0.00010673,2]
[421294171,1777377039982,-500.0,0.00010673,2]
[421294172,1777377039991,-500.0,0.00010673,2]
[421294173,1777377040000,-150.0,0.0001068,2]
[421294174,1777377040009,-1215.68700482,0.00010682,2]
[421294175,1777377040019,-150.0,0.00010682,2]
[421294176,1777377040028,-151.0,0.00010689,2]
[421294177,1777377040037,-192562.03909349,0.00010692,2]
[421294183,1777377040407,-4578.04286502,0.00010692,2]
[421294184,1777377040419,-1164.20361154,0.00010692,2]
[421294185,1777377040430,-1590.93838198,0.00010692,2]
[421294186,1777377040442,-436.75223375,0.00010692,2]
[421294187,1777377040706,-276.0,9.75e-05,2]
[421294188,1777377040716,-167188.96926489,0.00010692,2]
[421294189,1777377040727,-1426.82577668,0.00010692,2]
[421294190,1777377040738,-45618.17091319,0.00010692,2]
[421294191,1777377040759,-265.1286,0.00010692,2]
[421294192,1777377040769,-265.96,0.00010692,2]
[421294195,1777377041184,-625.74573982,0.00010692,2]
[421294196,1777377041196,-333.26194966,0.00010692,2]
[421294198,1777377043405,-2326.27450502,0.00010692,2]
[421294199,1777377043461,-95477.63731879,0.00010692,2]
[421294205,1777377046421,-763.4393,0.00010692,2]
[421294206,1777377046433,-7149.69486668,0.00010692,2]
[421294207,1777377046481,-10446.90427949,0.00010692,2]
[421294208,1777377046491,-203.92741762,0.00010692,2]
[421294209,1777377046501,-150.0,0.00010696,2]
[421294210,1777377046510,-150.0,0.00010697,2]
[421294211,1777377046520,-150.0,0.00010711,2]
[421294212,1777377046529,-150.0,0.00010726,2]
[421294213,1777377046539,-150.0,0.00010726,2]
[421294214,1777377046549,-150.0,0.00010726,2]
[421294215,1777377046558,-150.0,0.00010741,2]
[421294216,1777377046568,-150.0,0.00010749,2]
[421294217,1777377046578,-150.0,0.00010756,2]
[421294218,1777377046587,-150.0,0.0001077,2]
[421294219,1777377046598,-150.0,0.00010778,2]
[421294220,1777377046608,-150.0,0.00010779,2]
[421294221,1777377046619,-150.0,0.00010785,2]
[421294222,1777377046629,-5646.04,0.00010792,2]
[421294223,1777377046639,-150.0,0.000108,2]
[421294224,1777377046649,-700.0,0.000108,3]
[421294225,1777377046659,-2351.0,0.000108,2]
[421294226,1777377046668,-587.0,0.00010802,2]
[421294227,1777377046678,-150.0,0.00010815,2]
[421294228,1777377046688,-150.0,0.00010818,2]
[421294229,1777377046698,-150.0,0.00010818,2]
[421294230,1777377046707,-150.0,0.00010818,2]
[421294231,1777377046717,-150.0,0.0001083,2]
[421294232,1777377046726,-150.0,0.00010844,2]
[421294233,1777377046736,-150.0,0.00010858,2]
[421294234,1777377046746,-150.0,0.00010859,2]
[421294235,1777377046755,-150.0,0.00010874,2]
[421294236,1777377046765,-150.0,0.00010888,2]
[421294237,1777377046775,-150.0,0.00010889,2]
[421294238,1777377046784,-1500.0,0.000109,3]
[421294239,1777377046794,-150.0,0.00010904,2]
[421294240,1777377046804,-150.0,0.00010911,2]
[421294241,1777377046814,-150.0,0.00010918,2]
[421294242,1777377046824,-150.0,0.00010933,2]
[421294243,1777377046833,-150.0,0.00010937,2]
[421294244,1777377046843,-433.0,0.00010938,2]
[421294245,1777377046853,-150.0,0.00010939,2]
[421294246,1777377046863,-579.0,0.00010947,2]
[421294247,1777377046872,-150.0,0.00010948,2]
[421294248,1777377046882,-150.0,0.00010957,2]
[421294249,1777377046892,-500.0,0.00010958,2]
[421294250,1777377046901,-500.0,0.00010958,2]
[421294251,1777377046911,-500.0,0.00010958,2]
[421294252,1777377046920,-500.0,0.00010958,2]
[421294253,1777377046930,-500.0,0.00010958,2]
[421294254,1777377046939,-500.0,0.00010958,2]
[421294255,1777377046949,-500.0,0.00010958,2]
[421294256,1777377046958,-500.0,0.00010959,2]
[421294257,1777377046967,-500.0,0.00010959,2]
[421294258,1777377046976,-150.0,0.00010961,2]
[421294259,1777377046986,-150.0,0.00010961,2]
[421294260,1777377046995,-150.0,0.00010961,2]
[421294261,1777377047004,-150.0,0.00010963,2]
[421294262,1777377047014,-150.0,0.00010978,2]
[421294263,1777377047024,-150.0,0.00010992,2]
[421294264,1777377047034,-150.0,0.00011003,2]
[421294265,1777377047043,-150.0,0.00011007,2]
[421294266,1777377047053,-150.0,0.00011019,2]
[421294267,1777377047062,-150.0,0.00011022,2]
[421294268,1777377047072,-150.0,0.00011027,2]
[421294269,1777377047081,-150.0,0.00011037,2]
[421294270,1777377047091,-150.0,0.00011052,2]
[421294271,1777377047102,-150.0,0.00011066,2]
[421294272,1777377047112,-150.0,0.00011081,2]
[421294273,1777377047121,-150.0,0.00011096,2]
[421294274,1777377047131,-278.38904443,0.00011096,2]
[421294275,1777377047141,-222.78846457,0.00011096,2]
[421294276,1777377047151,-150.0,0.00011096,2]
[421294277,1777377047160,-176.89399999,0.00011096,2]
[421294278,1777377047170,-150.0,0.00011096,2]
[421294279,1777377047182,-224.7189611,0.00011096,2]
[421294280,1777377047192,-150.0,0.00011096,2]
[421294281,1777377047202,-151.0,0.00011096,2]
[421294282,1777377047212,-200.0,0.00011096,2]
[421294283,1777377047222,-300.0,0.00011098,2]
[421294284,1777377047231,-155.669,0.00011098,2]
[421294285,1777377047241,-54908.41702735,0.00011099,2]
[421294286,1777377047250,-54908.4170273,0.00011099,2]
[421294287,1777377047260,-54908.4170273,0.00011099,2]
[421294288,1777377047269,-54908.4170273,0.00011099,2]
[421294289,1777377047279,-54908.4170273,0.00011099,2]
[421294290,1777377047289,-54908.4170273,0.00011099,2]
[421294291,1777377047298,-17436.12919044,0.00011099,2]
[421294292,1777377047307,-2175.06732479,0.00011099,2]
[421294293,1777377047320,-326.35010713,0.00011099,2]
[421294294,1777377047333,-14934.71175845,0.00011099,2]
[421294295,1777377047345,-14631.53910022,0.00011099,2]
[421294296,1777377047359,-313.0549988,0.00011099,2]
[421294387,1777378231445,-250.0,8.219e-05,2]
[421294388,1777378231455,-280.0,8.219e-05,2]
[421294389,1777378231465,-1200.0,8.802e-05,2]
[421294391,1777378231474,-150.0,8.803e-05,2]
[421294392,1777378231484,-150.0,8.803e-05,2]
[421294394,1777378231493,-150.0,8.803e-05,2]
[421294395,1777378231502,-150.0,8.803e-05,2]
[421294397,1777378231512,-150.0,8.803e-05,2]
[421294398,1777378231521,-150.0,8.803e-05,2]
[421294399,1777378231531,-150.0,8.803e-05,2]
[421294401,1777378231539,-150.0,8.925e-05,2]
[421294402,1777378231549,-250.0,9.041e-05,2]
[421294404,1777378231558,-250.0,9.041e-05,2]
[421294405,1777378231567,-150.0,9.047e-05,2]
[421294406,1777378231576,-150.0,9.129e-05,2]
[421294407,1777378231586,-852.75657286,9.141e-05,2]
[421294408,1777378231595,-231.36567843,9.149e-05,2]
[421294409,1777378231605,-150.0,9.17e-05,2]
[421294410,1777378231614,-371.0,9.182e-05,2]
[421294411,1777378231623,-788.0,9.205e-05,2]
[421294412,1777378231632,-1737.0,9.224e-05,2]
[421294413,1777378231642,-655.0,9.278e-05,2]
[421294414,1777378231652,-150.0,9.292e-05,2]
[421294415,1777378231661,-150.0,9.292e-05,2]
[421294416,1777378231670,-150.0,9.292e-05,2]
[421294417,1777378231680,-1400.0,9.296e-05,2]
[421294418,1777378231689,-150.0,9.414e-05,2]
[421294419,1777378231698,-150.0,9.455e-05,2]
[421294420,1777378231708,-150.0,9.536e-05,2]
[421294421,1777378231717,-203039.46273009,9.549e-05,2]
[421294422,1777378231729,-572.54121727,9.549e-05,2]
[421294423,1777378231741,-3680.71673178,9.549e-05,2]
[421294454,1777378237831,-500.0,9.233e-05,2]
[421294455,1777378237843,-269.0,9.233e-05,2]
[421294456,1777378237856,-132.16,9.549e-05,2]
[421294458,1777378238049,-682.45837827,9.549e-05,2]
[421294459,1777378238064,-3929.55298167,9.549e-05,2]
[421294460,1777378238078,-2542.91899349,9.549e-05,2]
[421294461,1777378238093,-1187.75083997,9.549e-05,2]
[421294462,1777378238159,-7483.80136411,9.549e-05,2]
[421294463,1777378238172,-500.0,9.549e-05,2]
[421294464,1777378238219,-331.39424204,9.549e-05,2]
[421294474,1777378240038,-438.0000005,9.549e-05,2]
[421294476,1777378240414,-185393.27617754,9.549e-05,2]
[421294477,1777378240471,-610.45389952,9.549e-05,2]
[421294486,1777378242644,-925.03709536,9.549e-05,2]
[421294487,1777378242656,-1911.16944807,9.549e-05,2]
[421294488,1777378242699,-4541.51549796,9.549e-05,2]
[421294489,1777378242804,-36572.36268271,9.549e-05,2]
[421294500,1777378243315,-63840.0,9.549e-05,2]
[421294502,1777378245741,-309.36349874,8.549e-05,2]
[421294503,1777378245751,-83798.72658307,9.549e-05,2]
[421294504,1777378245853,-44052.15824463,9.549e-05,2]
[421294505,1777378246224,-762.62,9.549e-05,2]
[421294506,1777378246330,-3694.21045042,9.549e-05,2]
[421294507,1777378562681,178.92,0.000166,120]
[421294553,1777379251776,-280.0,8.219e-05,2]
[421294554,1777379265297,-390.0,8.228e-05,2]
[421294566,1777379431659,-250.0,8.231e-05,2]
[421294567,1777379431669,-300.0,8.235e-05,2]
[421294568,1777379431679,-250.0,8.753e-05,2]
[421294569,1777379431688,-150.0,9.04e-05,2]
[421294570,1777379431698,-250.0,9.05e-05,2]
[421294571,1777379431707,-624.98430607,9.219e-05,2]
[421294572,1777379431716,-397.85702545,9.292e-05,2]
[421294573,1777379431725,-216.00555089,9.292e-05,2]
[421294574,1777379431737,-1760.39097854,9.292e-05,2]
[421294575,1777379431747,-1869.14170773,9.292e-05,2]
[421294576,1777379431756,-270.0,9.292e-05,2]
[421294577,1777379431766,-76098.69524484,9.343e-05,2]
[421294578,1777379431777,-304854.96317158,9.343e-05,2]
[421294579,1777379431788,-1254.41808677,9.343e-05,2]
[421294580,1777379431799,-3229.88370083,9.343e-05,2]
[421294621,1777379438007,-280.0,8.219e-05,2]
[421294622,1777379438018,-389.6081481,9.343e-05,2]
[421294623,1777379438117,-762.75,9.343e-05,2]
[421294631,1777379440205,-402937.20592135,9.343e-05,2]
[421294632,1777379440219,-405.51840692,9.343e-05,2]
[421294633,1777379440315,-3167.34564539,9.343e-05,2]
[421294634,1777379440326,-383.93496297,9.343e-05,2]
[421294635,1777379440371,-3549.4941997,9.343e-05,2]
[421294636,1777379440429,-8107.34694089,9.343e-05,2]
[421294637,1777379440440,-655.90521818,9.343e-05,2]
[421294638,1777379440451,-330.76090863,9.343e-05,2]
[421294641,1777379443070,-871.62727309,9.343e-05,2]
[421294642,1777379443085,-697.3117184,9.343e-05,2]
[421294643,1777379443102,-3302.55053612,9.343e-05,2]
[421294646,1777379445867,-762.33925,9.343e-05,2]
[421294647,1777379445878,-19778.61652,9.343e-05,2]
[421294648,1777379445924,-34084.93413307,9.343e-05,2]
[421294649,1777379446034,-481.4691737,9.343e-05,2]
[421294650,1777379446144,-439.13846193,9.343e-05,2]
[421294652,1777380435514,1000.0,8.9e-05,3]
[421294653,1777380437596,2000.0,9e-05,3]
[421294655,1777380631817,-500.0,8.119e-05,2]
[421294656,1777380631827,-311.66023517,8.169e-05,2]
[421294657,1777380631837,-280.0,8.219e-05,2]
[421294658,1777380631847,-224.57524947,8.445e-05,2]
[421294659,1777380631856,-1200.0,8.445e-05,2]
[421294660,1777380631866,-300.0,8.445e-05,2]
[421294661,1777380631875,-224.57524946,8.794e-05,2]
[421294662,1777380631885,-150.0,8.93e-05,2]
[421294663,1777380631894,-250.0,8.931e-05,2]
[421294664,1777380631904,-789.0,8.969e-05,2]
[421294665,1777380631913,-150.0,9.068e-05,2]
[421294666,1777380631922,-150.0,9.068e-05,2]
[421294667,1777380631931,-150.0,9.068e-05,2]
[421294668,1777380631940,-265.14027138,9.068e-05,2]
[421294669,1777380631950,-150.0,9.068e-05,2]
[421294670,1777380631959,-170.49964996,9.068e-05,2]
[421294671,1777380631968,-150.0,9.068e-05,2]
[421294672,1777380631977,-150.69588499,9.068e-05,2]
[421294673,1777380631986,-1009.9228,9.142e-05,2]
[421294674,1777380631996,-230868.28078292,9.142e-05,2]